fUSD/lending_fUSD_20250510
["ID","MTS","AMOUNT","RATE_DAILY","PERIOD"]
[360541264,1746870631858,-2278.8221,0.00019899,2]
[360541265,1746870631868,-300.0,0.00019899,2]
[360541266,1746870631878,-1060.29474098,0.00019899,2]
[360541267,1746870631890,-139.70525902,0.00019899,2]
[360541268,1746870631899,-300.0,0.00019899,2]
[360541269,1746870631912,-189.308554,0.000199,2]
[360541270,1746870631922,-327.56564674,0.000199,2]
[360541271,1746870631931,-127.54550287,0.000199,2]
[360541272,1746870631953,-888.53439713,0.000199,2]
[360541273,1746870631962,-3091.7606,0.000199,2]
[360541274,1746870631972,-347.31953854,0.000199,2]
[360541275,1746870631981,-199.31543314,0.000199,2]
[360541276,1746870631991,-3980.34061547,0.000199,2]
[360541278,1746870632000,-776.6004271,0.00019936,2]
[360541280,1746870632009,-500.0,0.00019973,2]
[360541282,1746870632019,-500.96840743,0.00019973,2]
[360541284,1746870632028,-500.0,0.00019973,2]
[360541286,1746870632038,-500.0,0.00019973,2]
[360541288,1746870632048,-500.0,0.00019973,2]
[360541290,1746870632058,-151.0,0.00019988,2]
[360541292,1746870632068,-207.4,0.00019988,2]
[360541294,1746870632077,-4675.7978994,0.00019996,2]
[360541296,1746870632087,-1887.5693141,0.00019996,2]
[360541298,1746870632098,-532.77983624,0.00019999,2]
[360541300,1746870632107,-400.0,0.00019999,2]
[360541302,1746870632117,-400.0,0.00019999,2]
[360541304,1746870632127,-400.0,0.00019999,2]
[360541305,1746870632137,-400.0,0.00019999,2]
[360541306,1746870632146,-400.0,0.00019999,2]
[360541308,1746870632158,-400.0,0.00019999,2]
[360541310,1746870632171,-400.0,0.00019999,2]
[360541312,1746870632180,-400.0,0.00019999,2]
[360541314,1746870632190,-400.0,0.00019999,2]
[360541316,1746870632200,-373.58911556,0.00019999,2]
[360541318,1746870632211,-400.0,0.00019999,2]
[360541320,1746870632221,-500.0,0.00019999,2]
[360541322,1746870632231,-500.0,0.00019999,2]
[360541323,1746870632243,-500.0,0.00019999,2]
[360541324,1746870632253,-5588.46191442,0.00019999,2]
[360541325,1746870632263,-500.0,0.00019999,2]
[360541326,1746870632272,-624.4,0.00019999,2]
[360541327,1746870632282,-5588.46191442,0.00019999,2]
[360541328,1746870632292,-5588.46191442,0.00019999,2]
[360541329,1746870632301,-5588.46191442,0.00019999,2]
[360541330,1746870632312,-1457.19740101,0.0002,2]
[360541357,1746870637627,-17874.1182916,0.0002,2]
[360541358,1746870637734,-4447.53206874,0.0002,2]
[360541359,1746870637746,-7191.47130517,0.0002,2]
[360541360,1746870637756,-4024.0,0.0002,2]
[360541361,1746870637766,-86629.25513777,0.0002,2]
[360541362,1746870637895,-10733.71368094,0.0002,2]
[360541363,1746870637949,-20923.20215034,0.0002,2]
[360541569,1746870640150,-1096.95,0.0002,2]
[360541581,1746870640256,-515.56000026,0.0002,2]
[360541587,1746870640310,-6698.73247009,0.0002,2]
[360541924,1746870643924,-203.21344205,0.000199,3]
[360541926,1746870643934,-15285.9987321,0.00019996,2]
[360541928,1746870643944,-15578.36216855,0.0002,2]
[360541938,1746870644027,-9951.43056543,0.0002,2]
[360542048,1746870645804,-369.4904005,0.000199,2]
[360542049,1746870645814,-32657.11497491,0.0002,2]
[360542050,1746870645857,-8185.33439727,0.0002,2]
[360542051,1746870645868,-46682.30715883,0.0002,2]
[360542052,1746870645911,-737.45494344,0.0002,2]
[360542055,1746870646182,-300.000003,0.0002,2]
[360542551,1746870781677,22506.98,0.00019168,2]
[360542552,1746870799806,200.0,0.00019015,2]
[360542553,1746870891474,507.29,0.00017198,2]
[360542554,1746870891553,507.29,0.00019462,2]
[360542555,1746870966519,1000.0,0.0003,30]
[360542556,1746870974893,1000.0,0.0003,30]
[360542557,1746870988023,521.0,0.0003,30]
[360542558,1746870993197,500.0,0.0003,30]
[360542559,1746870994882,500.0,0.0003,30]
[360542560,1746870995243,500.0,0.0003,30]
[360542561,1746871005434,500.0,0.0003,30]
[360542562,1746871014782,500.0,0.0003,30]
[360542565,1746871124292,1100.4043706,0.0003,30]
[360542566,1746871267580,-470.470171,0.00019746,2]
[360542567,1746871267604,-199.31543314,0.00019797,2]
[360542568,1746871267629,-470.470171,0.00019896,2]
[360542569,1746871267652,-300.0,0.00019896,2]
[360542570,1746871267678,-2374.29641341,0.00019897,2]
[360542571,1746871267703,-1200.0,0.00019897,2]
[360542572,1746871267727,-170.70739079,0.00019897,2]
[360542573,1746871267752,-2374.29641333,0.00019897,2]
[360542574,1746871267777,-2374.29641333,0.00019898,2]
[360542575,1746871267799,-935.88967568,0.00019898,2]
[360542576,1746871267824,-2374.29641333,0.00019898,2]
[360542577,1746871267847,-850.0,0.00019898,2]
[360542578,1746871267871,-6736.9162,0.00019898,2]
[360542579,1746871267895,-2374.29641333,0.00019898,2]
[360542580,1746871267921,-2374.29641333,0.00019899,2]
[360542581,1746871267943,-48302.3735,0.00019899,2]
[360542582,1746871267968,-2374.29641333,0.00019899,2]
[360542583,1746871267992,-2374.29641333,0.00019899,2]
[360542584,1746871268016,-2374.29641333,0.000199,2]
[360542585,1746871268037,-458.421,0.000199,2]
[360542586,1746871268060,-1153.4229,0.000199,2]
[360542587,1746871268081,-3083.098,0.000199,2]
[360542588,1746871268103,-2387.1521,0.000199,2]
[360542589,1746871268127,-151.4468432,0.000199,2]
[360542590,1746871268150,-497.2671,0.000199,2]
[360542591,1746871268174,-10384.99247894,0.000199,2]
[360542592,1746871268196,-264.29344141,0.000199,2]
[360542593,1746871268220,-315.316,0.000199,2]
[360542594,1746871268244,-2374.29641333,0.000199,2]
[360542595,1746871268270,-2201.98407125,0.000199,2]
[360542596,1746871268292,-281.7982938,0.000199,2]
[360542597,1746871268314,-501.00387771,0.00019973,2]
[360542598,1746871268337,-502.56730322,0.00019973,2]
[360542599,1746871268373,-186.15144144,0.00019973,2]
[360542600,1746871268401,-500.0,0.00019973,2]
[360542601,1746871268424,-167.48077701,0.00019973,2]
[360542602,1746871268446,-502.10022894,0.00019973,2]
[360542603,1746871268469,-500.92982939,0.00019973,2]
[360542604,1746871268492,-500.0,0.00019973,2]
[360542605,1746871268516,-515.09733554,0.00019973,2]
[360542606,1746871268538,-303.42290899,0.00019973,2]
[360542607,1746871268561,-500.0,0.00019973,2]
[360542608,1746871268584,-500.0,0.00019973,2]
[360542609,1746871268607,-500.0,0.00019973,2]
[360542610,1746871268629,-500.0,0.00019973,2]
[360542611,1746871268651,-162.38522798,0.00019973,2]
[360542612,1746871268674,-500.0,0.00019973,2]
[360542613,1746871268698,-500.0,0.00019973,2]
[360542614,1746871268721,-182.5560474,0.00019973,2]
[360542615,1746871268743,-161.74605593,0.00019973,2]
[360542616,1746871268769,-160.31240825,0.00019973,2]
[360542617,1746871268792,-500.96840743,0.00019973,2]
[360542618,1746871268816,-1332.43552305,0.00019981,2]
[360542619,1746871268839,-151.0,0.00019988,2]
[360542620,1746871268863,-207.4,0.00019988,2]
[360542621,1746871268885,-36394.02398152,0.0001999,2]
[360542622,1746871268908,-5517.33602039,0.00019996,2]
[360542623,1746871268931,-1292.762225,0.00019996,2]
[360542624,1746871268954,-10460.2703995,0.00019996,2]
[360542625,1746871268976,-841.1760813,0.00019996,2]
[360542626,1746871268999,-347.8553437,0.00019996,2]
[360542627,1746871269025,-6528.8597034,0.00019996,2]
[360542628,1746871269048,-3860.5708846,0.00019996,2]
[360542629,1746871269073,-428.29798557,0.00019996,2]
[360542630,1746871269335,-400.0,0.00019996,2]
[360542631,1746871269361,-1823.084633,0.00019996,2]
[360542632,1746871269383,-400.0,0.00019996,2]
[360542633,1746871269411,-400.0,0.00019996,2]
[360542634,1746871269435,-500.0,0.00019996,2]
[360542635,1746871269460,-500.0,0.00019996,2]
[360542636,1746871269484,-201.73429737,0.00019996,2]
[360542637,1746871269522,-745.35988102,0.00019996,2]
[360542638,1746871269544,-240.0,0.00019996,2]
[360542639,1746871269569,-500.0,0.00019996,2]
[360542640,1746871269591,-500.0,0.00019996,2]
[360542641,1746871269624,-745.35988102,0.00019996,2]
[360542642,1746871269650,-500.0,0.00019996,2]
[360542643,1746871269682,-745.35988102,0.00019996,2]
[360542644,1746871269706,-500.0,0.00019996,2]
[360542645,1746871269731,-500.0,0.00019996,2]
[360542646,1746871269768,-745.35988102,0.00019996,2]
[360542647,1746871269791,-500.0,0.00019996,2]
[360542648,1746871269817,-500.0,0.00019996,2]
[360542649,1746871269850,-745.35988102,0.00019996,2]
[360542650,1746871269883,-745.35988102,0.00019996,2]
[360542651,1746871269907,-500.0,0.00019996,2]
[360542652,1746871269932,-500.0,0.00019996,2]
[360542653,1746871269955,-500.0,0.00019996,2]
[360542654,1746871269989,-745.35988102,0.00019996,2]
[360542655,1746871270018,-500.0,0.00019996,2]
[360542656,1746871270050,-745.35988102,0.00019996,2]
[360542657,1746871270082,-745.35988102,0.00019996,2]
[360542658,1746871270107,-378.53339077,0.00019996,2]
[360542659,1746871270140,-745.35988102,0.00019996,2]
[360542660,1746871270172,-745.35988102,0.00019996,2]
[360542661,1746871270204,-745.35988102,0.00019996,2]
[360542662,1746871270235,-745.35988102,0.00019996,2]
[360542663,1746871270271,-745.35988102,0.00019996,2]
[360542664,1746871270304,-745.35988102,0.00019996,2]
[360542665,1746871270340,-745.35988102,0.00019996,2]
[360542666,1746871270375,-745.35988102,0.00019996,2]
[360542667,1746871270411,-745.35988102,0.00019996,2]
[360542668,1746871270446,-745.35988102,0.00019996,2]
[360542669,1746871270481,-745.35988102,0.00019996,2]
[360542670,1746871270523,-745.35988102,0.00019996,2]
[360542671,1746871270556,-745.35988102,0.00019996,2]
[360542672,1746871270589,-745.35988102,0.00019996,2]
[360542673,1746871270622,-745.35988102,0.00019996,2]
[360542674,1746871270655,-745.35988102,0.00019996,2]
[360542675,1746871270689,-745.35988102,0.00019996,2]
[360542676,1746871270724,-745.35988102,0.00019996,2]
[360542677,1746871270758,-745.35988102,0.00019996,2]
[360542678,1746871270796,-745.35988102,0.00019996,2]
[360542679,1746871270829,-745.35988102,0.00019996,2]
[360542680,1746871270861,-745.35988102,0.00019996,2]
[360542681,1746871270894,-745.35988102,0.00019996,2]
[360542682,1746871270926,-745.35988102,0.00019996,2]
[360542683,1746871270960,-745.35988102,0.00019996,2]
[360542684,1746871270993,-745.35988102,0.00019996,2]
[360542685,1746871271028,-745.35988102,0.00019996,2]
[360542686,1746871271060,-745.35988102,0.00019996,2]
[360542687,1746871271092,-745.35988102,0.00019996,2]
[360542688,1746871271125,-745.35988102,0.00019996,2]
[360542689,1746871271157,-745.35988102,0.00019996,2]
[360542690,1746871271189,-745.35988102,0.00019996,2]
[360542691,1746871271222,-745.35988102,0.00019996,2]
[360542692,1746871271256,-745.35988102,0.00019996,2]
[360542693,1746871271294,-745.35988102,0.00019996,2]
[360542694,1746871271326,-745.35988102,0.00019996,2]
[360542695,1746871271359,-745.35988102,0.00019996,2]
[360542696,1746871271396,-745.35988102,0.00019996,2]
[360542697,1746871271429,-745.35988102,0.00019996,2]
[360542698,1746871271460,-745.35988102,0.00019996,2]
[360542699,1746871271492,-745.35988102,0.00019996,2]
[360542700,1746871271526,-3780.97843959,0.00019996,2]
[360542701,1746871271557,-3780.97843959,0.00019996,2]
[360542702,1746871271588,-3780.97843959,0.00019996,2]
[360542703,1746871271620,-3780.97843959,0.00019996,2]
[360542704,1746871271651,-3780.97843959,0.00019996,2]
[360542705,1746871271683,-3780.97843959,0.00019996,2]
[360542706,1746871271714,-3780.97843959,0.00019996,2]
[360542707,1746871271746,-3780.97843959,0.00019996,2]
[360542708,1746871271779,-3780.97843959,0.00019996,2]
[360542709,1746871271811,-3780.97843959,0.00019996,2]
[360542710,1746871271844,-3780.97843959,0.00019996,2]
[360542711,1746871271875,-3780.97843959,0.00019996,2]
[360542712,1746871271907,-3780.97843959,0.00019996,2]
[360542713,1746871271938,-3780.97843959,0.00019996,2]
[360542714,1746871271970,-3780.97843959,0.00019996,2]
[360542715,1746871272002,-3780.97843959,0.00019996,2]
[360542716,1746871272035,-3780.97843959,0.00019996,2]
[360542717,1746871272068,-3780.97843959,0.00019996,2]
[360542718,1746871272100,-3780.97843959,0.00019996,2]
[360542719,1746871272131,-3780.97843959,0.00019996,2]
[360542720,1746871272163,-3780.97843959,0.00019996,2]
[360542721,1746871272196,-3780.97843959,0.00019996,2]
[360542722,1746871272230,-3780.97843959,0.00019996,2]
[360542723,1746871272265,-3780.97843959,0.00019996,2]
[360542724,1746871272297,-3780.97843959,0.00019996,2]
[360542725,1746871272331,-3780.97843959,0.00019996,2]
[360542726,1746871272365,-3780.97843959,0.00019996,2]
[360542727,1746871272401,-3780.97843959,0.00019996,2]
[360542728,1746871272424,-400.0,0.00019998,2]
[360542729,1746871272447,-400.0,0.00019998,2]
[360542730,1746871272472,-400.0,0.00019998,2]
[360542731,1746871272496,-400.0,0.00019998,2]
[360542732,1746871272523,-400.0,0.00019999,2]
[360542733,1746871272546,-309.29,0.00019999,2]
[360542734,1746871272570,-450.0,0.00019999,2]
[360542735,1746871272592,-400.0,0.00019999,2]
[360542736,1746871272616,-400.0,0.00019999,2]
[360542737,1746871272638,-400.0,0.00019999,2]
[360542738,1746871272662,-400.0,0.00019999,2]
[360542739,1746871272686,-400.0,0.00019999,2]
[360542740,1746871272709,-247.24,0.00019999,2]
[360542741,1746871272731,-400.0,0.00019999,2]
[360542742,1746871272754,-452.63032485,0.00019999,2]
[360542743,1746871272778,-400.0,0.00019999,2]
[360542744,1746871272803,-400.0,0.00019999,2]
[360542745,1746871273037,-400.0,0.00019999,2]
[360542746,1746871273060,-400.0,0.00019999,2]
[360542747,1746871273083,-400.0,0.00019999,2]
[360542748,1746871273107,-400.0,0.00019999,2]
[360542749,1746871273131,-400.0,0.00019999,2]
[360542750,1746871273154,-400.0,0.00019999,2]
[360542751,1746871273176,-400.0,0.00019999,2]
[360542752,1746871273199,-450.0,0.00019999,2]
[360542753,1746871273222,-400.0,0.00019999,2]
[360542754,1746871273245,-400.0,0.00019999,2]
[360542755,1746871273269,-180.04199218,0.00019999,2]
[360542756,1746871273292,-400.0,0.00019999,2]
[360542757,1746871273318,-409.23630326,0.00019999,2]
[360542758,1746871273341,-400.0,0.00019999,2]
[360542759,1746871273363,-400.0,0.00019999,2]
[360542760,1746871273388,-400.0,0.00019999,2]
[360542761,1746871273412,-400.0,0.00019999,2]
[360542762,1746871273435,-400.0,0.00019999,2]
[360542763,1746871273458,-400.0,0.00019999,2]
[360542764,1746871273481,-400.0,0.00019999,2]
[360542765,1746871273505,-400.0,0.00019999,2]
[360542766,1746871273529,-526.43148156,0.00019999,2]
[360542767,1746871273552,-400.0,0.00019999,2]
[360542768,1746871273574,-450.0,0.00019999,2]
[360542769,1746871273599,-400.0,0.00019999,2]
[360542770,1746871273621,-460.63764504,0.00019999,2]
[360542771,1746871273644,-400.0,0.00019999,2]
[360542772,1746871273667,-427.77778537,0.00019999,2]
[360542773,1746871273690,-400.0,0.00019999,2]
[360542774,1746871273713,-429.07510395,0.00019999,2]
[360542775,1746871273736,-400.0,0.00019999,2]
[360542776,1746871273760,-305.55946207,0.00019999,2]
[360542777,1746871273785,-312.07707247,0.00019999,2]
[360542778,1746871273809,-400.0,0.00019999,2]
[360542779,1746871273837,-427.36850726,0.00019999,2]
[360542780,1746871273860,-405.63230091,0.00019999,2]
[360542781,1746871273884,-400.0,0.00019999,2]
[360542782,1746871273907,-400.0,0.00019999,2]
[360542783,1746871273931,-400.0,0.00019999,2]
[360542784,1746871273954,-409.65525004,0.00019999,2]
[360542785,1746871273976,-400.0,0.00019999,2]
[360542786,1746871273999,-428.71947819,0.00019999,2]
[360542787,1746871274024,-400.0,0.00019999,2]
[360542788,1746871274046,-400.0,0.00019999,2]
[360542789,1746871274069,-400.0,0.00019999,2]
[360542790,1746871274092,-400.0,0.00019999,2]
[360542791,1746871274116,-400.0,0.00019999,2]
[360542792,1746871274139,-400.0,0.00019999,2]
[360542793,1746871274162,-400.0,0.00019999,2]
[360542794,1746871274186,-400.0,0.00019999,2]
[360542795,1746871274209,-400.0,0.00019999,2]
[360542796,1746871274233,-400.0,0.00019999,2]
[360542797,1746871274257,-400.0,0.00019999,2]
[360542798,1746871274284,-174.98,0.00019999,2]
[360542799,1746871274308,-400.0,0.00019999,2]
[360542800,1746871274330,-350.0,0.00019999,2]
[360542801,1746871274355,-400.0,0.00019999,2]
[360542802,1746871274378,-400.0,0.00019999,2]
[360542803,1746871274403,-400.0,0.00019999,2]
[360542804,1746871274426,-338.72745485,0.00019999,2]
[360542805,1746871274450,-400.0,0.00019999,2]
[360542806,1746871274473,-400.0,0.00019999,2]
[360542807,1746871274499,-206.5,0.00019999,2]
[360542808,1746871274524,-400.0,0.00019999,2]
[360542809,1746871274731,-543.48,0.00019999,2]
[360542810,1746871274755,-400.0,0.00019999,2]
[360542811,1746871274784,-349.23585498,0.00019999,2]
[360542812,1746871274807,-400.0,0.00019999,2]
[360542813,1746871274831,-400.0,0.00019999,2]
[360542814,1746871274855,-467.46,0.00019999,2]
[360542815,1746871274878,-467.46,0.00019999,2]
[360542816,1746871274903,-467.46,0.00019999,2]
[360542817,1746871274926,-467.46,0.00019999,2]
[360542818,1746871274949,-467.46,0.00019999,2]
[360542819,1746871274972,-467.46,0.00019999,2]
[360542820,1746871274996,-467.46,0.00019999,2]
[360542821,1746871275028,-467.46,0.00019999,2]
[360542822,1746871275052,-467.46,0.00019999,2]
[360542823,1746871275075,-467.46,0.00019999,2]
[360542824,1746871275100,-467.46,0.00019999,2]
[360542825,1746871275123,-467.46,0.00019999,2]
[360542826,1746871275147,-467.46,0.00019999,2]
[360542827,1746871275171,-467.46,0.00019999,2]
[360542828,1746871275196,-467.46,0.00019999,2]
[360542829,1746871275221,-467.46,0.00019999,2]
[360542830,1746871275246,-467.46,0.00019999,2]
[360542831,1746871275273,-467.46,0.00019999,2]
[360542832,1746871275298,-467.46,0.00019999,2]
[360542833,1746871275322,-467.46,0.00019999,2]
[360542834,1746871275346,-467.46,0.00019999,2]
[360542835,1746871275370,-467.46,0.00019999,2]
[360542836,1746871275398,-467.46,0.00019999,2]
[360542837,1746871275423,-467.65184278,0.00019999,2]
[360542838,1746871275450,-400.0,0.00019999,2]
[360542839,1746871275475,-400.0,0.00019999,2]
[360542840,1746871275499,-400.0,0.00019999,2]
[360542841,1746871275525,-400.0,0.00019999,2]
[360542842,1746871275551,-400.0,0.00019999,2]
[360542843,1746871275577,-400.0,0.00019999,2]
[360542844,1746871275603,-400.0,0.00019999,2]
[360542845,1746871275627,-400.0,0.00019999,2]
[360542846,1746871275651,-400.0,0.00019999,2]
[360542847,1746871275677,-400.0,0.00019999,2]
[360542848,1746871275702,-400.0,0.00019999,2]
[360542849,1746871275728,-400.0,0.00019999,2]
[360542850,1746871275754,-400.0,0.00019999,2]
[360542851,1746871275783,-400.0,0.00019999,2]
[360542852,1746871275808,-400.0,0.00019999,2]
[360542853,1746871275833,-400.0,0.00019999,2]
[360542854,1746871275857,-320.59803965,0.00019999,2]
[360542855,1746871275882,-281.18,0.00019999,2]
[360542856,1746871275909,-491.64000001,0.00019999,2]
[360542857,1746871275933,-400.0,0.00019999,2]
[360542858,1746871275957,-400.0,0.00019999,2]
[360542859,1746871275982,-400.0,0.00019999,2]
[360542860,1746871276006,-400.0,0.00019999,2]
[360542861,1746871276032,-400.0,0.00019999,2]
[360542862,1746871276056,-400.0,0.00019999,2]
[360542863,1746871276081,-400.0,0.00019999,2]
[360542864,1746871276105,-400.0,0.00019999,2]
[360542865,1746871276129,-400.0,0.00019999,2]
[360542866,1746871276152,-400.0,0.00019999,2]
[360542867,1746871276176,-400.0,0.00019999,2]
[360542868,1746871276199,-400.0,0.00019999,2]
[360542869,1746871276223,-400.0,0.00019999,2]
[360542870,1746871276247,-400.0,0.00019999,2]
[360542871,1746871276274,-400.0,0.00019999,2]
[360542872,1746871276298,-400.0,0.00019999,2]
[360542873,1746871276321,-400.0,0.00019999,2]
[360542874,1746871276345,-400.0,0.00019999,2]
[360542875,1746871276368,-400.0,0.00019999,2]
[360542876,1746871276392,-400.0,0.00019999,2]
[360542877,1746871276418,-400.0,0.00019999,2]
[360542878,1746871276443,-400.0,0.00019999,2]
[360542879,1746871276468,-400.0,0.00019999,2]
[360542880,1746871276495,-400.0,0.00019999,2]
[360542881,1746871276522,-150.0,0.00019999,2]
[360542882,1746871276545,-206.0189,0.00019999,2]
[360542883,1746871276569,-454.64795848,0.00019999,2]
[360542884,1746871276592,-266.76652058,0.00019999,2]
[360542885,1746871276615,-325.69412668,0.00019999,2]
[360542886,1746871276639,-282.52527933,0.00019999,2]
[360542887,1746871276662,-400.0,0.00019999,2]
[360542888,1746871276686,-400.0,0.00019999,2]
[360542889,1746871276710,-400.0,0.00019999,2]
[360542890,1746871276734,-400.0,0.00019999,2]
[360542891,1746871276757,-400.0,0.00019999,2]
[360542892,1746871276784,-400.0,0.00019999,2]
[360542893,1746871276807,-400.0,0.00019999,2]
[360542894,1746871276831,-400.0,0.00019999,2]
[360542895,1746871276856,-400.0,0.00019999,2]
[360542896,1746871276880,-400.0,0.00019999,2]
[360542897,1746871276904,-400.0,0.00019999,2]
[360542898,1746871276928,-400.0,0.00019999,2]
[360542899,1746871276951,-224.28,0.00019999,2]
[360542900,1746871276974,-400.0,0.00019999,2]
[360542901,1746871276997,-400.0,0.00019999,2]
[360542902,1746871277025,-400.0,0.00019999,2]
[360542903,1746871277049,-400.0,0.00019999,2]
[360542904,1746871277072,-400.0,0.00019999,2]
[360542905,1746871277095,-400.0,0.00019999,2]
[360542906,1746871277119,-400.0,0.00019999,2]
[360542907,1746871277143,-269.00267386,0.00019999,2]
[360542908,1746871277166,-400.0,0.00019999,2]
[360542909,1746871277190,-400.0,0.00019999,2]
[360542910,1746871277213,-400.0,0.00019999,2]
[360542911,1746871277235,-400.0,0.00019999,2]
[360542912,1746871277259,-400.0,0.00019999,2]
[360542913,1746871277287,-400.0,0.00019999,2]
[360542914,1746871277312,-400.0,0.00019999,2]
[360542915,1746871277335,-400.0,0.00019999,2]
[360542916,1746871277360,-400.0,0.00019999,2]
[360542917,1746871277384,-400.0,0.00019999,2]
[360542918,1746871277412,-400.0,0.00019999,2]
[360542919,1746871277438,-400.0,0.00019999,2]
[360542920,1746871277461,-400.0,0.00019999,2]
[360542921,1746871277488,-400.0,0.00019999,2]
[360542922,1746871277512,-400.0,0.00019999,2]
[360542923,1746871277539,-400.0,0.00019999,2]
[360542924,1746871277563,-400.0,0.00019999,2]
[360542925,1746871277586,-400.0,0.00019999,2]
[360542926,1746871277610,-400.0,0.00019999,2]
[360542927,1746871277634,-400.0,0.00019999,2]
[360542928,1746871277658,-400.0,0.00019999,2]
[360542929,1746871277684,-400.0,0.00019999,2]
[360542930,1746871277708,-400.0,0.00019999,2]
[360542931,1746871277731,-400.0,0.00019999,2]
[360542932,1746871277754,-400.0,0.00019999,2]
[360542933,1746871277780,-400.0,0.00019999,2]
[360542934,1746871277803,-400.0,0.00019999,2]
[360542935,1746871277827,-400.0,0.00019999,2]
[360542936,1746871277849,-400.0,0.00019999,2]
[360542937,1746871277875,-400.0,0.00019999,2]
[360542938,1746871277898,-400.0,0.00019999,2]
[360542939,1746871277921,-400.0,0.00019999,2]
[360542940,1746871277946,-310.68144277,0.00019999,2]
[360542941,1746871277969,-399.26995026,0.00019999,2]
[360542942,1746871277991,-404.33681723,0.00019999,2]
[360542943,1746871278018,-400.0,0.00019999,2]
[360542944,1746871278040,-293.9904369,0.00019999,2]
[360542945,1746871278063,-400.0,0.00019999,2]
[360542946,1746871278087,-400.0,0.00019999,2]
[360542947,1746871278109,-400.0,0.00019999,2]
[360542948,1746871278132,-400.0,0.00019999,2]
[360542949,1746871278154,-400.0,0.00019999,2]
[360542950,1746871278176,-400.0,0.00019999,2]
[360542951,1746871278199,-400.0,0.00019999,2]
[360542952,1746871278223,-400.0,0.00019999,2]
[360542953,1746871278246,-400.0,0.00019999,2]
[360542954,1746871278273,-400.0,0.00019999,2]
[360542955,1746871278298,-400.0,0.00019999,2]
[360542956,1746871278324,-400.0,0.00019999,2]
[360542957,1746871278350,-400.0,0.00019999,2]
[360542958,1746871278375,-400.0,0.00019999,2]
[360542959,1746871278403,-400.0,0.00019999,2]
[360542960,1746871278427,-400.0,0.00019999,2]
[360542961,1746871278452,-400.0,0.00019999,2]
[360542962,1746871278479,-400.0,0.00019999,2]
[360542963,1746871278503,-400.0,0.00019999,2]
[360542964,1746871278528,-283.57282353,0.00019999,2]
[360542965,1746871278552,-400.0,0.00019999,2]
[360542966,1746871278579,-400.0,0.00019999,2]
[360542967,1746871278603,-400.0,0.00019999,2]
[360542968,1746871278627,-400.0,0.00019999,2]
[360542969,1746871278650,-400.0,0.00019999,2]
[360542970,1746871278674,-204.22870362,0.00019999,2]
[360542971,1746871278698,-400.0,0.00019999,2]
[360542972,1746871278722,-400.0,0.00019999,2]
[360542973,1746871278746,-400.0,0.00019999,2]
[360542974,1746871278771,-405.87492029,0.00019999,2]
[360542975,1746871278795,-400.0,0.00019999,2]
[360542976,1746871278820,-400.0,0.00019999,2]
[360542977,1746871278844,-400.0,0.00019999,2]
[360542978,1746871278868,-400.0,0.00019999,2]
[360542979,1746871278892,-400.0,0.00019999,2]
[360542980,1746871278924,-400.0,0.00019999,2]
[360542981,1746871278948,-400.0,0.00019999,2]
[360542982,1746871278974,-400.0,0.00019999,2]
[360542983,1746871278998,-400.0,0.00019999,2]
[360542984,1746871279023,-400.0,0.00019999,2]
[360542985,1746871279048,-400.0,0.00019999,2]
[360542986,1746871279254,-400.0,0.00019999,2]
[360542987,1746871279278,-400.0,0.00019999,2]